Cogmind - Beta 16.1 @@@ ROGUE MODE // 2026.03.07 @ 06:12:33 Player: FL-IST Result: Destroyed by D-53 Grenadier with Mini Grenade Launcher Performance ------------- Evolutions (0) 0 Regions Visited (2) 400 Robots Destroyed (34) 170 Value Destroyed (694) 694 Prototype IDs (0) 0 Alien Tech Used (0) 0 Bonus (0) 0 TOTAL SCORE: 1264 Bonus ------- None Cogmind --------- Core Integrity 0/250 Matter 176/300 Energy 150/160 System Corruption 4% Temperature Cool (84) Movement Core (1500) Ox29 Location -10/Mines Parts ------- > --- POWER (1) -------- Light Nuclear Core > --- PROPULSION (2) --- (None) > --- UTILITY (2) ------ Huge Storage Unit Seismic Detector > --- WEAPON (2) ------- Rocket Launcher > --- INVENTORY (25) --- Light Treads Heat Sink Medium Storage Unit Seismic Detector Medium Laser Medium Laser Assault Rifle Light Assault Rifle Grenade Launcher Grenade Launcher Datajack Peak State ------------ > --- POWER ------------ Light Nuclear Core > --- PROPULSION ------- Light Treads Wheel > --- UTILITY ---------- Huge Storage Unit Seismic Detector > --- WEAPON ----------- Particle Gun Assault Rifle > --- INVENTORY -------- Light Treads Heat Sink Medium Storage Unit Seismic Detector Medium Laser Medium Laser Light Assault Rifle Grenade Launcher Grenade Launcher Datajack [Rating: 11] Favorites ----------- Power Light Ion Engine Engine Light Ion Engine Power Core Light Nuclear Core Propulsion Light Treads Treads Light Treads Wheel Wheel Utility Seismic Detector Device Seismic Detector Storage Medium Storage Unit Weapon Medium Laser Energy Gun Medium Laser Energy Cannon Beam Cannon Ballistic Gun Assault Rifle Launcher Grenade Launcher Build | -11 -10 -10 ------- Run | Yrd Mat Min Slots Evolved . | . . . Power . | . . . Propulsion . | . . . Utility . | . . . Weapon . | . . . Parts Attached 19 | 8 10 1 Power 3 | 1 2 . Engine 2 | 1 1 . Core 1 | . 1 . Reactor . | . . . Propulsion 4 | 2 2 . Treads 1 | 1 . . Leg . | . . . Wheel 3 | 1 2 . Hover . | . . . Flight . | . . . Utility 5 | 3 2 . Device 2 | 2 . . Storage 3 | 1 2 . Processor . | . . . Hackware . | . . . Protection . | . . . Artifact . | . . . Weapon 7 | 2 4 1 Energy Gun 2 | 1 1 . Energy Cannon 1 | . 1 . Ballistic Gun 2 | 1 1 . Ballistic Cannon . | . . . Launcher 2 | . 1 1 Special Weapon . | . . . Impact Weapon . | . . . Slashing Weapon . | . . . Piercing Weapon . | . . . Special Melee Weapon . | . . . Unidentified Prototypes . | . . . Parts Lost 9 | . 6 3 Power 2 | . 2 . Propulsion 4 | . 2 2 Utility . | . . . Weapon 3 | . 2 1 Highest Loss Streak 4 | . 4 3 To Critical Strikes . | . . . Average Backups 7 | 3 7 10 Power . | . . . Propulsion 1 | 1 1 1 Utility 2 | . 2 3 Weapon 3 | . 2 5 Tool/Special . | . . . Unused Backups 7 | . . 7 Power . | . . . Propulsion 1 | . . 1 Utility 2 | . . 2 Weapon 3 | . . 3 Tool/Special 1 | . . 1 Average Slot Usage (%) 96 | . 95 99 Engine 6 | . 9 . Core 4 | . 1 14 Treads 13 | . 14 13 Wheel 13 | . 14 13 Device 14 | . 14 14 Storage 14 | . 14 14 Energy Gun 13 | . 13 14 Energy Cannon 5 | . 8 . Ballistic Gun 7 | . 5 13 Peak Build Rating 11 | 7 11 11 Average Rating 8 | 6 7 10 On Entrance 6 | . 7 11 Avg Prop Armor Cover (%) 13 | 13 13 12 Naked Turns . | . . . Heaviest Build 91 | 12 91 91 Greatest Support 20 | 20 16 10 Greatest Overweight (x) 9 | 1 9 9 Average Overweight (x) 2 | . 1 9 Largest Inventory Capacity 25 | 8 25 25 Average Capacity 14 | 7 12 25 Most Carried 11 | 5 11 11 Average Carried 7 | 3 7 10 Final Capacity 25 | 8 25 25 Final Carried 11 | 5 10 11 Class Distribution -------------------- 100% | Mutant Dominant Class ---------------- Mutant | -10/Materials Mutant | -10/Mines Resources | -11 -10 -10 ----------- Run | Yrd Mat Min Matter Collected 447 | 316 131 . Remotely 87 | 87 . . Salvage Created 947 | 225 722 . Parts 61 | 21 40 . Haulers Intercepted 2 | . 2 . Recyclers Shooed . | . . . Parts Field Recycled . | . . . Retrieved Matter . | . . . Parts Self-Destructed . | . . . Prevented . | . . . Parts Restored . | . . . Kills | -11 -10 -10 ------- Run | Yrd Mat Min Combat Hostiles Destroyed 17 | . 16 1 Guns 7 | . 6 1 Cannons 5 | . 5 . AOE 5 | . 5 . Classes Destroyed 11 | 3 7 1 Worker 3 | 2 1 . Builder 2 | . 2 . Tunneler 6 | 6 . . Hauler 2 | . 2 . Recycler 1 | 1 . . Mechanic 1 | . 1 . Operator 1 | . 1 . Watcher 1 | . 1 . Swarmer 3 | . 3 . Grunt 13 | . 13 . Demolisher 1 | . . 1 Best Kill Streak 6 | 4 6 1 Combat Bots Only 5 | . 5 1 Max Kills in Single Turn 3 | 1 3 1 Gunslinging . | . . . Exploded 3 | . 3 . Melee . | . . . Uniques/NPCs Destroyed . | . . . Combat | -11 -10 -10 -------- Run | Yrd Mat Min Hostile Shots Fired 70 | . 57 13 Missed 9 | . 9 . Hits 61 | . 48 13 Projectile 61 | . 48 13 AOE 11 | . . 11 Part Disruptions 1 | . . 1 Damage Taken 1079 | . 658 421 Core 250 | . 152 98 Absorbed by Shields . | . . . Core Remaining (%) 100 | 100 . . Volleys Fired 122 | 36 83 3 Largest 2 | 2 2 2 Hottest 110 | 70 110 98 Shots Fired 241 | 72 163 6 Gun 176 | 72 101 3 Cannon 57 | . 57 . Launcher 8 | . 5 3 Special . | . . . Kinetic 63 | 36 27 . Thermal 170 | 36 131 3 Explosive 8 | . 5 3 Electromagnetic . | . . . Robot Hit Streak 11 | 5 11 5 Robot Miss Streak 4 | 3 4 . Penetration Max . | . . . Secondary Targets . | . . . Shots Hit Robots 153 | 42 106 5 Core Hits 59 | 12 41 6 Critical Kills . | . . . Critical Parts Destroyed . | . . . Critical Strikes 5 | 3 2 . Burn 5 | 3 2 . Melee Attacks . | . . . Impact . | . . . Slashing . | . . . Piercing . | . . . Sneak Attacks . | . . . Combat Hostiles . | . . . Follow-up Attacks . | . . . Damage Inflicted 2471 | 389 1977 105 Guns 1216 | 389 778 49 Cannons 751 | . 751 . Explosions 504 | . 448 56 Melee . | . . . Ramming . | . . . Kinetic 261 | 150 111 . Thermal 1706 | 239 1418 49 Explosive 504 | . 448 56 Electromagnetic . | . . . Impact . | . . . Slashing . | . . . Piercing . | . . . Highest Corruption 4 | . 4 4 Average Corruption 3 | . 3 4 Corruption Purged . | . . . Corruption Blocked . | . . . Effects 16 | . 7 9 Message Errors 3 | . 2 1 Matter Fused 4 | . 1 3 Energy Discharges 4 | . 1 3 Data Loss (minor) 1 | . 1 . Data Loss (major) 1 | . . 1 Misfires 1 | . 1 . Alerts 2 | . 1 1 Overload Shots . | . . . Overflow Damage 47 | . 45 2 Projectiles 24 | . 24 . Explosions 23 | . 21 2 Melee . | . . . Knockbacks . | . . . Impact . | . . . Kinetic . | . . . Secondary . | . . . Self-Inflicted Damage 108 | . 108 . Shots 5 | . 5 . Rammed . | . . . Targets Rammed . | . . . Kicked . | . . . Crushed . | . . . Highest Temperature 338 | 150 338 84 Average Temperature 90 | 57 102 37 Received Heat Transfer 334 | . 294 40 Effects 1 | . 1 . Energy Bleed 1 | . 1 . Siege Activations . | . . . Martial Activations . | . . . Shielding Activations . | . . . Robots Disrupted . | . . . Combat Hostiles . | . . . Robots Corrupted . | . . . Combat Hostiles . | . . . Parts Fried . | . . . Impact Corruptions . | . . . Robots Melted 1 | 1 . . Combat Hostiles . | . . . Parts Melted 8 | 1 7 . Heat Transferred 4588 | 925 3552 111 Parts Sabotaged . | . . . Parts Stolen . | . . . Parts Stripped . | . . . Power Chain Reactions . | . . . Alert | -11 -10 -10 ------- Run | Yrd Mat Min Maximum Alert Level 1 | . 1 . Low Security (%) 84 | 100 74 100 Level 1 15 | . 25 . Level 2 . | . . . Level 3 . | . . . Level 4 . | . . . Level 5 . | . . . High Security . | . . . Max Security . | . . . Peak Influence 278 | 10 278 79 Initial 79 | . . 79 Average 87 | 2 134 15 Influence Increases 786 | 45 705 36 Destroy 0b10 Robot/C 340 | . 320 20 Destroy 0b10 Robot/NC 85 | 45 40 . Destroy Leader 96 | . 86 10 Successful Hack 64 | . 64 . Select Force Hacks 60 | . 60 . Disable Machine 30 | . 30 . Destroy Structure 21 | . 15 6 Lose Combat Pursuer 90 | . 90 . Influence Decreases 760 | 45 499 216 Entered New Map 127 | . . 127 Time Decay 563 | 45 439 79 Lost Part 70 | . 60 10 Squads Dispatched 4 | . 4 . Investigation 3 | . 3 . Extermination . | . . . Reinforcement 1 | . 1 . Assault . | . . . Garrison . | . . . Intercept . | . . . Searches Triggered . | . . . Construction Impeded . | . . . Haulers Reinforced . | . . . Active Scanning Responses . | . . . Cargo Convoy Interrupts . | . . . Stealth | -11 -10 -10 --------- Run | Yrd Mat Min Distress Signals 1 | . 1 . Communications Jammed . | . . . Distress Signals . | . . . Times Spotted 28 | . 25 3 Peak Tracking Total 7 | . 7 3 Tactical Retreats 2 | . 2 . Traps | -11 -10 -10 ------- Run | Yrd Mat Min Traps Triggered 3 | . 3 . Indirectly . | . . . Trap Hack Attempts . | . . . Triggered . | . . . Disarmed . | . . . Reprogrammed . | . . . Reused . | . . . Traps Extracted . | . . . Installed . | . . . Triggered . | . . . Machines | -11 -10 -10 ---------- Run | Yrd Mat Min Machines Disabled 3 | . 3 . Max in Single Turn 1 | . 1 . Machines Repaired . | . . . Machines Dismantled . | . . . Machines Sabotaged . | . . . Overloaded Fab Kills . | . . . Hacking | -11 -10 -10 --------- Run | Yrd Mat Min Machines Accessed 9 | . 9 . Terminals 7 | . 7 . Fabricators . | . . . Repair Stations . | . . . Recycling Units 2 | . 2 . Scanalyzers . | . . . Garrison Access . | . . . Total Hacks 28 | . 28 . Successful 20 | . 20 . Failed 7 | . 7 . Catastrophic . | . . . Database Lockouts 1 | . 1 . Manual 22 | . 22 . Terminals 22 | . 22 . Fabricators . | . . . Repair Stations . | . . . Recycling Units 6 | . 6 . Scanalyzers . | . . . Garrison Access . | . . . Terminal Hacks 4 | . 4 . Robot Analysis 2 | . 2 . Locate Traps 2 | . 2 . Fabricator Hacks . | . . . Repair Station Hacks . | . . . Recycling Unit Hacks 2 | . 2 . Retrieve Matter 1 | . 1 . Retrieve Components 1 | . 1 . Scanalyzer . | . . . Garrison Access Hacks . | . . . Unauthorized Hacks 14 | . 14 . Terminals 12 | . 12 . Botnet 7 | . 7 . Skim 5 | . 5 . Fabricators . | . . . Repair Stations . | . . . Recycling Units 2 | . 2 . Tunnel 2 | . 2 . Scanalyzers . | . . . Garrison Access . | . . . Data Cores Recovered . | . . . Used . | . . . Hacking Detections 9 | . 9 . Full Trace Events . | . . . Feedback Events . | . . . Feedback Blocked . | . . . Robot Schematics Acquired . | . . . Robots Built . | . . . Authchips . | . . . Time . | . . . Total Robot Build Rating . | . . . Part Schematics Acquired . | . . . Parts Built . | . . . Authchips . | . . . Time . | . . . Total Part Build Rating . | . . . Part Studies Acquired . | . . . Parts Repaired . | . . . Time . | . . . Parts Recycled . | . . . Recycled Matter . | . . . Retrieved Matter . | . . . Retrieved Components 3 | . 3 . Parts Scanalyzed . | . . . Part Schematics Acquired . | . . . Parts Damaged . | . . . Bothacking | -11 -10 -10 ------------ Run | Yrd Mat Min Used RIF Installer . | . . . Robots Hacked . | . . . Non-combat . | . . . Combat . | . . . Robot Hacks Applied . | . . . Relay Couplers Released . | . . . Fabnet Peak Effective % . | . . . Robots Rewired . | . . . Allies Hacked . | . . . Hacks Repelled . | . . . Allies | -11 -10 -10 -------- Run | Yrd Mat Min Total Allies . | . . . Largest Group . | . . . Highest-Rated Group . | . . . Highest-Rated Ally . | . . . Total Orders . | . . . Ally Attacks . | . . . Total Damage . | . . . Kills . | . . . Allies Corrupted . | . . . Allies Melted . | . . . Intel | -11 -10 -10 ------- Run | Yrd Mat Min Active Infowar (turns) 1802 | 141 1192 469 Seismic 1802 | 141 1192 469 Robot Analysis Total 2 | . 2 . Derelict Logs Recovered . | . . . Drone Launches . | . . . Drone Recoveries . | . . . Exploration | -11 -10 -10 ------------- Run | Yrd Mat Min Turns Passed 1916 | 255 1192 469 Spaces Moved 1087 | 146 742 199 Core 5 | 5 . . Treads 4 | 4 . . Legs . | . . . Wheels 1078 | 137 742 199 Hover . | . . . Flight . | . . . Fastest Speed 50 | 50 95 215 Average Speed 129 | 93 114 215 Slowest Speed 215 | 160 215 215 Overloaded Moves . | . . . Propulsion Burnouts . | . . . Robots Hopped . | . . . Potential Cave-ins . | . . . Cave-ins Triggered . | . . . Exploration Rate (%) 45 | 5 95 37 Regions Visited 2 Branch Regions 1 Pre-discovered Areas 3 | . 3 . Known Exits Taken 1 | . 1 . Unknown Exits Taken 1 | 1 . . Scrap Searched . | . . . Spaces Dug . | . . . Terrain Destroyed 26 | . 11 15 Melee . | . . . Projectile . | . . . AOE 26 | . 11 15 Terrain Rammed . | . . . Walls Destroyed . | . . . Machines Disabled . | . . . Actions | -11 -10 -10 --------- Run | Yrd Mat Min Total 1359 | 195 928 236 Wait 114 | . 82 32 Move 1085 | 145 741 199 Hop . | . . . Pick Up 15 | 5 9 1 Fast Attach 9 | 8 1 . Attach 5 | . 5 . Detach . | . . . Swap 6 | . 5 1 Drop 3 | 1 2 . Fire 122 | 36 83 3 Melee . | . . . Ram . | . . . Kick . | . . . Crush . | . . . Escape Stasis . | . . . Rewire . | . . . Trap . | . . . Miscellaneous . | . . . Route ------- -11/Scrapyard -10/Materials (discovered 6 exits: *Mat x3 / *Min x2 / Sub) -10/Mines (discovered 1 exit: *Mat) History --------- Turn | Location | Event 4 | -11/Scrapyard | Discovered new exit (range 16) 256 | -11/Scrapyard | Entered Materials 314 | -10/Materials | Build established: Mutant 370 | -10/Materials | Discovered new exit (range 6) 465 | -10/Materials | Discovered new exit (range 6) 576 | -10/Materials | Central database locked down 653 | -10/Materials | Learned location of Recycling (-8) 680 | -10/Materials | Discovered new exit (range 12) 722 | -10/Materials | Loaded intel: 2 recycling unit locations 780 | -10/Materials | Identified exit to Subcaves 826 | -10/Materials | Identified exit to Mines 826 | -10/Materials | Identified exit to Materials 912 | -10/Materials | Learned location of 1 exit from Recycling 972 | -10/Materials | Learned 4 Subcaves zone layouts 1155 | -10/Materials | Core integrity fell below 50% 1191 | -10/Materials | Lost 4 parts (1p1n2w) 1448 | -10/Materials | Entered Mines 1455 | -10/Mines | Received a Rocket Launcher from a helpful Derelict 1473 | -10/Mines | Discovered exit to Materials (range 12) 1546 | -10/Mines | Deemed a non-threat by the Exiles lab entrance 1724 | -10/Mines | Assembled infested the area 1911 | -10/Mines | Core integrity fell below 20% 1917 | -10/Mines | Destroyed by D-53 Grenadier with Mini Grenade Launcher Last Messages --------------- 01702_ System corrupted: Matter fused (-10). 01724_ ALERT: Infestation in the mines, dispatching Demolisher response squad. 01767_ System corrupted: Energy discharge (-60). 01808_ System corrupted: IFF burst signal emitted. 01839_ <2K/HJPVVIIPX53O9AZL:K 01870_ The unstable cave ceiling collapses. 01882_ System corrupted: Energy discharge (-52). 01898_ Lgt. Treads destroyed. 01905_ The unstable cave ceiling collapses. 01906_ as-29992 destroyed. 01907_ System corrupted: Matter fused (-8). 01907_ The unstable cave ceiling collapses. 01908_ Wheel destroyed. 01910_ The unstable cave ceiling collapses. 01912_ K-01 Serf collects debris. 01914_ D-53 Grenadier destroyed. 01914_ Destroyed Mining Laser. 01916_ K-01 Serf collects debris. 01917_ Particle Gun destroyed. Map ----- +----------------------------------------------------+ | ?????????????????????????????????????# #?????? | | ?????????????????????????????????????# """ #?????? | | ?????????????????????????????????????# """ #?????? | | ?????????????????????????????????????# """ ####### | | ?????????????????????????????????????# | | ?????????????????????????????????????# | | ?????????????????????????????????????# ####### | | ?????????????????????????????????????#### ##?????? | | ??####????????????????????????????????### #??????? | | ??# ##???????????????????????????????# #??????? | | ??# #???????????????????????????????# ###??????? | | ??# ##????????????????????#####?????# #????????? | | ??## ####????????????????## ####### #????????? | | ???# ##??????????###### ### | | ???# #??????????# | | ???# ##?????????# ########## | | ???## ##????????## # ##??????# # | | ????## ########??### #????????? # | | ###??## ## ##???# #???????????? # | | ####### #??## d ########???????? | | ##?## """ #### ! $#?????? | | ##?#### """ ## ###??????????? | | #????## """ #??????????????? | | #?????# ##??????????????? | | ##?????# t # #???????????????? | | #####?????## @ ##???????????????? | | #???????### k r #?????????????? | | #???##### ## ?????????? | | ##### #### ### #???????? | | ## ## ##??###### ## ##????????????? | | ## ### ###????????##### ##?????????????? | | ### ## ### #?????????????? ###??????????????? | | ??# #?????????????? ##????????????????? | | ??# ########?????????????? ##?????????????????? | | ??# #???????????????????? #??????????????????? | | ??# #???????????????????? ##??????????????????? | | ### ###?????????????????? #????????????????????? | | ##????????????????? #?????????????????????? | | ### < ####?????????????????????????????????????? | | ?## #?????????????????????????????????????? | | ## ### #?????????????????????????????????????? | | # ##???#?????????????????????????????????????? | | ##??????????????????????????????????????????? | | ###???????????????????????????????????????????? | | ####?????????????????????????????????????????????? | | #????????????????????????????????????????????????? | | ?????????????????????????????????????????????????? | | ?????????????????????????????????????????????????? | | ?????????????????????????????????????????????????? | | ?????????????????????????????????????????????????? | +----------------------------------------------------+ Best States ------------- Heat Dissipation 25 Energy Generation 14 Energy Capacity 250 Matter Stores 300 Matter Capacity 300 Sight Range 16 Terrain Scan Density 10 Evasion (%) 44 Recoil Reduction 1 Item Schematics ----------------- None Robot Schematics ------------------ None Fabricated ------------ Nothing Repaired ---------- Nothing Studied --------- None Alien Tech Used ----------------- None Achievements -------------- None Challenges ------------ None Game ------ Seed GunTacticalRocket Manual? 0 Play Time 00:11:06 Cumulative 329.4 hours Start 2026.03.06 @ 13:29:21 End 2026.03.07 @ 06:12:33 Sessions 2 Manual Loads 0 Difficulty Rogue Special Mode None Game No. 266 Rogue 266 Adventurer 0 Explorer 0 Win Type - Total 19 Types 10/0/7/2/0/0/0/0/0/0 Lore% 85 Gallery% 76 Achievement% 64 Wizard Run 0 Options --------- Layout 1 ASCII 0 Keyboard 0 Movement Numpad Keybinds 0 Fullscreen 1 Font 32/SmallcapsGlow Map View 77x35 Zoom Use 0% Tactical HUD 1 Map Filters NONE Filters NONE Steam 1 RUN: f616e20f-51fb-43e4-a3c6-1fbc2ed52b8f